Cogmind - Beta 13 @@@ ROGUE MODE // 2024.04.01 @ 09:23:41 Player: antarius46 Result: Destroyed by 88-Q0J(R) with Subdweller Machine Gun Performance ------------- Evolutions (0) 0 Regions Visited (2) 400 Robots Destroyed (16) 80 Value Destroyed (649) 649 Prototype IDs (2) 40 Alien Tech Used (0) 0 Bonus (0) 0 TOTAL SCORE: 1169 Bonus ------- None Cogmind --------- Core Integrity 0/250 Matter 237/300 Energy 208/250 System Corruption 5% Temperature Cool (4) Movement Walking (820) Ox10 Location -10/Subcaves Parts ------- > --- POWER (1) -------- Ion Engine > --- PROPULSION (2) --- Aluminum Leg Aluminum Leg > --- UTILITY (2) ------ Humpback > --- WEAPON (2) ------- Heavy Riot Gun Barrage Gun > --- INVENTORY (35) --- Subdweller Power Source Aluminum Leg Aluminum Leg Carbon-fiber Leg Improved Heat Sink Medium Battery (150) Medium Matter Pod (100) Propulsion Shielding Scrap Shield Makeshift System Restoration Module Beamcaster Beam Cannon Subdweller Machine Gun Subdweller Machine Gun Subdweller Machine Gun Subdweller Machine Gun Scrap Shield Fragment (49) Scrap Shield Fragment (49) Scrap Shield Fragment (47) Scrap Shield Fragment (47) Scrap Shield Fragment (47) Scrap Shield Fragment (47) Scrap Shield Fragment (45) Scrap Shield Fragment (45) Scrap Shield Fragment (44) Scrap Shield Fragment (43) Scrap Shield Fragment (43) Scrap Shield Fragment (40) Scrap Shield Fragment (32) Peak State ------------ > --- POWER ------------ Ion Engine > --- PROPULSION ------- Myomer Leg Myomer Leg > --- UTILITY ---------- Humpback > --- WEAPON ----------- Beamcaster Beamcaster > --- INVENTORY -------- Ion Engine Subdweller Power Source Makeshift Power Source Aluminum Leg Aluminum Leg Aluminum Leg Aluminum Leg Carbon-fiber Leg Improved Heat Sink Medium Battery Medium Matter Pod Propulsion Shielding Scrap Shield Makeshift System Restoration Module Heavy Riot Gun Beam Cannon Subdweller Machine Gun Subdweller Machine Gun Scrap Shield Fragment Scrap Shield Fragment Scrap Shield Fragment Scrap Shield Fragment Scrap Shield Fragment Scrap Shield Fragment Scrap Shield Fragment Scrap Shield Fragment [Rating: 32] Favorites ----------- Power Ion Engine Engine Ion Engine Propulsion Aluminum Leg Leg Aluminum Leg Utility Humpback Device Improved Heat Sink Storage Humpback Processor Targeting Computer Protection Light Armor Plating Weapon Subdweller Machine Gun Energy Gun Heavy Riot Gun Energy Cannon Beam Cannon Ballistic Gun Subdweller Machine Gun Special Weapon Flamer Build | -11 -10 -10 ------- Run | Yrd Mat Sub Slots Evolved . | . . . Power . | . . . Propulsion . | . . . Utility . | . . . Weapon . | . . . Parts Attached 45 | 5 19 21 Power 7 | 1 3 3 Engine 7 | 1 3 3 Core . | . . . Reactor . | . . . Propulsion 11 | 2 4 5 Treads . | . . . Leg 11 | 2 4 5 Wheel . | . . . Hover . | . . . Flight . | . . . Utility 7 | 1 5 1 Device 2 | . 2 . Storage 2 | 1 . 1 Processor 1 | . 1 . Hackware . | . . . Protection 2 | . 2 . Artifact . | . . . Weapon 20 | 1 7 12 Energy Gun 10 | . 5 5 Energy Cannon 3 | . 2 1 Ballistic Gun 6 | 1 . 5 Ballistic Cannon . | . . . Launcher . | . . . Special Weapon 1 | . . 1 Impact Weapon . | . . . Slashing Weapon . | . . . Piercing Weapon . | . . . Special Melee Weapon . | . . . Unidentified Prototypes . | . . . Corrupted Parts 2 | . 2 . System Corruption 4 | . 4 . Parts Lost 11 | . 5 6 Power 3 | . . 3 Propulsion 1 | . . 1 Utility 2 | . 2 . Weapon 5 | . 3 2 Highest Loss Streak 3 | . 3 2 To Critical Strikes . | . . . Average Slot Usage (%) 80 | . 96 76 Engine 9 | . 14 8 Leg 25 | . 28 24 Device 1 | . 6 . Storage 14 | . 14 14 Processor 1 | . 3 . Energy Gun 6 | . 9 6 Energy Cannon 4 | . 12 2 Ballistic Gun 14 | . 3 16 Naked Turns . | . . . Heaviest Build 213 | 12 17 213 Greatest Support 50 | 20 20 50 Greatest Overweight (x) 10 | 1 . 10 Average Overweight (x) 2 | . . 4 Largest Inventory Capacity 35 | 8 8 35 Average Capacity 27 | 7 8 33 Most Carried 32 | 5 8 32 Average Carried 20 | 1 5 24 Final Capacity 35 | 8 8 35 Final Carried 30 | 2 8 30 Class Distribution -------------------- 74% | Hauler-Mutant 21% | Mutant 4% | Scavenger-Mutant Dominant Class ---------------- Mutant | -10/Materials Hauler-Mutant | -10/Subcaves Resources | -11 -10 -10 ----------- Run | Yrd Mat Sub Matter Collected 860 | 195 341 324 Remotely . | . . . Salvage Created 723 | . 451 272 Parts 39 | . 22 17 Haulers Intercepted . | . . . Recyclers Shooed . | . . . Parts Field Recycled . | . . . Retrieved Matter . | . . . Parts Self-Destructed 9 | . . 9 Prevented . | . . . Kills | -11 -10 -10 ------- Run | Yrd Mat Sub Combat Hostiles Destroyed 16 | . 10 6 Guns 13 | . 8 5 Cannons 3 | . 2 1 Classes Destroyed 2 | . 1 1 Grunt 10 | . 10 . Subdweller 6 | . . 6 Best Kill Streak 4 | . 4 2 Combat Bots Only 4 | . 4 2 Max Kills in Single Turn 2 | . 2 1 Gunslinging 1 | . 1 . Exploded . | . . . Melee . | . . . Uniques/NPCs Destroyed . | . . . Combat | -11 -10 -10 -------- Run | Yrd Mat Sub Hostile Shots Fired 149 | . 88 61 Missed 37 | . 19 18 Damage Taken 1906 | . 920 986 Core 263 | . 76 187 Absorbed by Shields . | . . . Core Remaining (%) 100 | 100 . . Volleys Fired 77 | . 46 31 Largest 2 | . 2 2 Hottest 150 | . 120 150 Shots Fired 141 | . 85 56 Gun 118 | . 66 52 Cannon 21 | . 19 2 Launcher . | . . . Special 2 | . . 2 Kinetic 51 | . 26 25 Thermal 64 | . 45 19 Explosive . | . . . Electromagnetic 26 | . 14 12 Robot Hit Streak 13 | . 12 13 Robot Miss Streak 4 | . 4 4 Penetration Max . | . . . Secondary Targets 1 | . 1 . Max Gunslinging Chain 1 | . 1 . Shots Hit Robots 104 | . 63 41 Core Hits 33 | . 19 14 Critical Kills . | . . . Critical Parts Destroyed . | . . . Critical Strikes 3 | . . 3 Burn 3 | . . 3 Melee Attacks . | . . . Impact . | . . . Slashing . | . . . Piercing . | . . . Sneak Attacks . | . . . Combat Hostiles . | . . . Follow-up Attacks . | . . . Damage Inflicted 1612 | . 895 717 Guns 1380 | . 718 662 Cannons 211 | . 177 34 Explosions . | . . . Melee . | . . . Ramming . | . . . Kinetic 578 | . 307 271 Thermal 726 | . 436 290 Explosive . | . . . Electromagnetic 308 | . 152 156 Impact . | . . . Slashing . | . . . Piercing . | . . . Highest Corruption 5 | . 5 5 Average Corruption 4 | . 4 5 Corruption Purged . | . . . Corruption Blocked . | . . . Effects 82 | . 12 70 Message Errors 13 | . 4 9 Matter Fused 18 | . 1 17 Heat Flow Errors 15 | . 1 14 Energy Discharges 20 | . 4 16 Parts Fused 2 | . . 2 Data Loss (minor) 10 | . 1 9 Data Loss (major) 4 | . 1 3 Overload Shots . | . . . Overflow Damage 3 | . 3 . Projectiles 3 | . 3 . Explosions . | . . . Melee . | . . . Knockbacks . | . . . Impact . | . . . Kinetic . | . . . Secondary . | . . . Self-Inflicted Damage . | . . . Shots . | . . . Rammed . | . . . Targets Rammed . | . . . Kicked . | . . . Crushed . | . . . Highest Temperature 335 | . 335 254 Average Temperature 121 | . 143 82 Received Heat Transfer 1008 | . 588 420 Effects 1 | . 1 . Matter Decay 1 | . 1 . Siege Activations . | . . . Robots Corrupted . | . . . Combat Hostiles . | . . . Parts Fried . | . . . Impact Corruptions . | . . . Robots Melted . | . . . Combat Hostiles . | . . . Parts Melted 3 | . . 3 Heat Transferred 1894 | . 945 949 Parts Sabotaged . | . . . Parts Stolen . | . . . Parts Stripped . | . . . Power Chain Reactions . | . . . Alert | -11 -10 -10 ------- Run | Yrd Mat Sub Peak Influence 294 | . 294 . Initial . | . . . Average 118 | . 128 . Maximum Alert Level 1 | . 1 . Low Security (%) 91 | 100 90 . Level 1 8 | . 9 . Level 2 . | . . . Level 3 . | . . . Level 4 . | . . . Level 5 . | . . . High Security . | . . . Max Security . | . . . Squads Dispatched 5 | . 5 . Investigation 3 | . 3 . Extermination . | . . . Reinforcement 2 | . 2 . Assault . | . . . Garrison . | . . . Intercept . | . . . Searches Triggered . | . . . Construction Impeded . | . . . Haulers Reinforced . | . . . Active Scanning Responses . | . . . Cargo Convoy Interrupts . | . . . Stealth | -11 -10 -10 --------- Run | Yrd Mat Sub Distress Signals 1 | . 1 . Communications Jammed . | . . . Distress Signals . | . . . Times Spotted 32 | . 16 16 Peak Tracking Total 4 | . 4 2 Tactical Retreats 2 | . 2 . Traps | -11 -10 -10 ------- Run | Yrd Mat Sub Traps Triggered . | . . . Indirectly . | . . . Trap Hack Attempts . | . . . Triggered . | . . . Disarmed . | . . . Reprogrammed . | . . . Reused . | . . . Traps Extracted . | . . . Installed . | . . . Triggered . | . . . Machines | -11 -10 -10 ---------- Run | Yrd Mat Sub Machines Disabled 3 | . 3 . Max in Single Turn 1 | . 1 . Machines Repaired . | . . . Machines Dismantled . | . . . Machines Sabotaged . | . . . Overloaded Fab Kills . | . . . Hacking | -11 -10 -10 --------- Run | Yrd Mat Sub Machines Accessed 6 | . 5 1 Terminals 4 | . 4 . Fabricators . | . . . Repair Stations . | . . . Recycling Units 1 | . 1 . Scanalyzers . | . . . Garrison Access . | . . . Total Hacks 22 | . 20 2 Successful 14 | . 12 2 Failed 7 | . 7 . Catastrophic . | . . . Database Lockouts 1 | . 1 . Manual . | . . . Terminals 16 | . 16 . Fabricators . | . . . Repair Stations . | . . . Recycling Units 4 | . 4 . Scanalyzers . | . . . Garrison Access . | . . . Terminal Hacks 12 | . 10 2 Record 6 | . 4 2 Robot Analysis 1 | . 1 . Prototype ID Bank 1 | . 1 . Locate Traps 1 | . 1 . Dispatch Records 1 | . 1 . Recall Investigation 1 | . 1 . Hauler Manifests 1 | . 1 . Fabricator Hacks . | . . . Repair Station Hacks . | . . . Recycling Unit Hacks 2 | . 2 . Report Inventory 1 | . 1 . Retrieve Components 1 | . 1 . Scanalyzer . | . . . Garrison Access Hacks . | . . . Unauthorized Hacks . | . . . Terminals . | . . . Fabricators . | . . . Repair Stations . | . . . Recycling Units . | . . . Scanalyzers . | . . . Garrison Access . | . . . Data Cores Recovered . | . . . Used . | . . . Hacking Detections 5 | . 5 . Full Trace Events 4 | . 4 . Feedback Events 1 | . 1 . Corruption 1 | . 1 . Feedback Blocked . | . . . Robot Schematics Acquired . | . . . Robots Built . | . . . Authchips . | . . . Time . | . . . Total Robot Build Rating . | . . . Part Schematics Acquired . | . . . Parts Built . | . . . Authchips . | . . . Time . | . . . Total Part Build Rating . | . . . Parts Repaired . | . . . Time . | . . . Parts Recycled . | . . . Recycled Matter . | . . . Retrieved Matter . | . . . Retrieved Components 9 | . 9 . Parts Scanalyzed . | . . . Part Schematics Acquired . | . . . Parts Damaged . | . . . Bothacking | -11 -10 -10 ------------ Run | Yrd Mat Sub Used RIF Installer . | . . . Robots Hacked . | . . . Non-combat . | . . . Combat . | . . . Robot Hacks Applied . | . . . Relay Couplers Released . | . . . Fabnet Peak Effective % . | . . . Robots Rewired . | . . . Allies Hacked . | . . . Hacks Repelled . | . . . Allies | -11 -10 -10 -------- Run | Yrd Mat Sub Total Allies . | . . . Largest Group . | . . . Highest-Rated Group . | . . . Highest-Rated Ally . | . . . Total Orders . | . . . Ally Attacks . | . . . Total Damage . | . . . Kills . | . . . Allies Corrupted . | . . . Allies Melted . | . . . Intel | -11 -10 -10 ------- Run | Yrd Mat Sub Robot Analysis Total 1 | . 1 . Derelict Logs Recovered 2 | . . 2 Drone Launches . | . . . Drone Recoveries . | . . . Exploration | -11 -10 -10 ------------- Run | Yrd Mat Sub Turns Passed 3557 | 53 682 2822 Spaces Moved 1022 | 40 403 579 Core 20 | 20 . . Treads . | . . . Legs 1002 | 20 403 579 Wheels . | . . . Hover . | . . . Flight . | . . . Fastest Speed 50 | 50 120 120 Average Speed 307 | 105 120 452 Slowest Speed 820 | 120 120 820 Overloaded Moves . | . . . Propulsion Burnouts . | . . . Robots Hopped . | . . . Cave-ins Triggered . | . . . Exploration Rate (%) 39 | 3 77 38 Regions Visited 2 Branch Regions 1 Pre-discovered Areas 2 | . . 2 Known Exits Taken . | . . . Unknown Exits Taken 2 | 1 1 . Scrap Searched 5 | . . 5 Spaces Dug . | . . . Terrain Destroyed . | . . . Melee . | . . . Projectile . | . . . AOE . | . . . Terrain Rammed . | . . . Walls Destroyed . | . . . Machines Disabled . | . . . Actions | -11 -10 -10 --------- Run | Yrd Mat Sub Total 1292 | 51 519 722 Wait 54 | . 12 42 Move 1020 | 39 402 579 Hop . | . . . Pick Up 72 | 7 27 38 Fast Attach . | . . . Attach 22 | 5 10 7 Detach 1 | . . 1 Swap 23 | . 9 14 Drop 23 | . 13 10 Fire 77 | . 46 31 Melee . | . . . Ram . | . . . Kick . | . . . Crush . | . . . Escape Stasis . | . . . Rewire . | . . . Trap . | . . . Miscellaneous . | . . . Route ------- -11/Scrapyard -10/Materials (discovered 3 exits: [*Mat x2] / *Sub) -10/Subcaves History --------- Turn | Location | Event 6 | -11/Scrapyard | Discovered new exit (range 15) 54 | -11/Scrapyard | Entered Materials 292 | -10/Materials | Lost 3 parts (1u2w) 373 | -10/Materials | Central database locked down 454 | -10/Materials | Discovered new exit (range 5) 649 | -10/Materials | Discovered new exit (range 15) 728 | -10/Materials | Discovered new exit (range 8) 736 | -10/Materials | Entered Subcaves 783 | -10/Subcaves | Learned location of Recycling (-8) 798 | -10/Subcaves | Build established: Mutant 894 | -10/Subcaves | Ambushed by swarm of Subdwellers 1240 | -10/Subcaves | Build established: Hauler-Mutant 1774 | -10/Subcaves | Core integrity fell below 50% 2037 | -10/Subcaves | Visited Clippyterm 2861 | -10/Subcaves | Learned location of Zion (-7) 2861 | -10/Subcaves | Met a Zionite searching for "candidates" 3245 | -10/Subcaves | Core integrity fell below 20% 3558 | -10/Subcaves | Destroyed by 88-Q0J(R) with Subdweller Machine Gun Last Messages --------------- Found 28 Matter. Acquired 28 matter. System corrupted: Matter fused (-7). Acquired Flamer. [Achievement: Packrat] |TV0E,1DHJ|6P,1 :G/ DF2U Acquired Scrap Shield Fragment. Searching scrap... Found Barrage Gun. Found 32 Matter. Acquired 18 matter. Acquired Barrage Gun. System corrupted: Heat flow error (+103). System corrupted: Energy discharge (-28). System corrupted: Component data lost. System corrupted: Substantial component data lost. System corrupted: Energy discharge (-72). 88-Q0J(R) suffers critical hit (Burn). Flamer destroyed. Map ----- +----------------------------------------------------+ | ?????????????????????????????????????????????????? | | ?????????????????????????????????????????????????? | | ?????????????????????????????????????????????????? | | ?????????????????????????????????????????????????? | | ?????????????????????????????????????????????????? | | ?????????????????????????????????????????????????? | | ?????????????????????????????????????????????????? | | ?????????????????????????????????????????????????? | | ?????????#####???????????????????????????????????? | | ????????## # ##??????????????????????????????????? | | ????????# %#??????????????????????????????????? | | ????????###&"##??????????????????????????????????? | | ?????????# &###??????????????????????????????????? | | ????????### # ####???????????????????????????????? | | ????????# " %] ###?????????????????????????????? | | ######### #########?????????????????????? | | ## ## #"# ##????????????????????? | | #### #????????????????????? | | #??# #????????????????????? | | ## #?## ##????????????????????? | | ## ### ## # # ##?????????????????????? | | ## ### ## ##??????????????????????? | | #### ## ## #??????????????????????? | | #??# ## ### #??????????????????????? | | ??## ##### ## # #######?????????????????? | | ??# ##???## ####" @ #?????????????????? | | ??# #?????# #?####R ##?????????????????? | | ??# #?????######?????"" #??????????????????? | | ?## ####?????????????????"""#??????????????????? | | ## ##???????????????????? ""?????????????????? | | # ##?????????????????????? ""????????????????? | | ##???????????????????????# "????????????????? | | #????????????????????????? ""????????????????? | | #?????????????????????????? "?????????????????? | | ###?????????????????????????????????????????????? | | #??????????????????????????????????????????????? | | ##??????????????????????????????????????????????? | | #???????????????????????????????????????????????? | | ???????????????????????????????????????????????? | | ??????????????????????????????????????????????? | | ?????????????????????????????????????????????? | | ### ????????????????????????????????????????????? | | #??# ???????????????????????????????????????????? | | ???##??????????????????????????????????????????? | | ???????????????????????????????????????????????? | | ???????????????????????????????????????????????? | | ???????????????????????????????????????????????? | | ???????????????????????????????????????????????? | | ?????????????????????????????????????????????????? | | ?????????????????????????????????????????????????? | +----------------------------------------------------+ Best States ------------- Heat Dissipation 39 Energy Generation 15 Energy Capacity 250 Matter Stores 300 Matter Capacity 300 Sight Range 16 Terrain Scan Density 10 Armor Coverage 150 Evasion (%) 55 Targeting Accuracy 5 Item Schematics ----------------- None Robot Schematics ------------------ None Fabricated ------------ Nothing Alien Tech Used ----------------- None Achievements -------------- GoHome() Packrat Tank Challenges ------------ None Game ------ Seed VortexPlatingThruster Manual? 0 Play Time 00:30:18 Cumulative 3.9 hours Start 2024.04.01 @ 08:55:49 End 2024.04.01 @ 09:23:41 Sessions 1 Manual Loads 0 Difficulty Rogue Special Mode None Game No. 7 Rogue 7 Adventurer 0 Explorer 0 Win Type - Total 0 Types 0/0/0/0/0/0/0/0/0 Lore% 3 Gallery% 8 Achievement% 8 Wizard Run 0 Options --------- Layout 1 ASCII 0 Keyboard 0 Movement Mouse Keybinds 0 Fullscreen 1 Font 24/Smallcaps Map View 50x35 Zoom Use 0% Tactical HUD 0 Map Filters NONE Filters NONE Steam 1 RUN: f7e0ef84-8465-4871-b54a-87e1adc3e1e1